[Event "Titled Tuesday Blitz June 8 2021"]
[White "Kamsky, Gata"]
[Black "Samsonkin, Artiom"]
[WhiteFideId "2000024"]
[BlackFideId "13503111"]
[WhiteElo "2644"]
[BlackElo "2513"]
[Result "1-0"]
[Round "05"]
[TimeControl "180+1"]
[Date "2021.06.08"]
[WhiteClock "0:01:06"]
[BlackClock "0:00:03"]

1. d4 {[%clk 0:03:00]}  Nf6 {[%clk 0:02:58]} 2. Nf3 {[%clk 0:02:58]}  e6 {[%clk 0:02:58]} 3. Bf4 {[%clk 0:02:57]}  d5 {[%clk 0:02:50]} 4. e3 {[%clk 0:02:57]}  c5 {[%clk 0:02:51]} 5. Nbd2 {[%clk 0:02:55]}  Nc6 {[%clk 0:02:52]} 6. c3 {[%clk 0:02:55]}  cxd4 {[%clk 0:02:52]} 7. exd4 {[%clk 0:02:55]}  Nh5 {[%clk 0:02:53]} 8. Be3 {[%clk 0:02:47]}  Bd6 {[%clk 0:02:52]} 9. Ne5 {[%clk 0:02:47]}  g6 {[%clk 0:02:52]} 10. Nd3 {[%clk 0:02:41]}  f5 {[%clk 0:02:40]} 11. f4 {[%clk 0:02:33]}  O-O {[%clk 0:02:33]} 12. Be2 {[%clk 0:02:28]}  Nf6 {[%clk 0:02:31]} 13. O-O {[%clk 0:02:28]}  b6 {[%clk 0:02:26]} 14. Ne5 {[%clk 0:02:22]}  Bb7 {[%clk 0:02:14]} 15. Nxc6 {[%clk 0:02:05]}  Bxc6 {[%clk 0:02:13]} 16. Nf3 {[%clk 0:02:05]}  Qe8 {[%clk 0:02:08]} 17. a4 {[%clk 0:02:03]}  Ng4 {[%clk 0:01:56]} 18. Bd2 {[%clk 0:02:00]}  b5 {[%clk 0:01:49]} 19. axb5 {[%clk 0:01:56]}  Bxb5 {[%clk 0:01:48]} 20. Re1 {[%clk 0:01:56]}  Bxe2 {[%clk 0:01:45]} 21. Qxe2 {[%clk 0:01:55]}  Nf6 {[%clk 0:01:29]} 22. Qxe6+ {[%clk 0:01:50]}  Qxe6 {[%clk 0:01:30]} 23. Rxe6 {[%clk 0:01:50]}  Ne4 {[%clk 0:01:31]} 24. Ng5 {[%clk 0:01:44]}  Rfd8 {[%clk 0:00:31]} 25. Nxe4 {[%clk 0:01:43]}  fxe4 {[%clk 0:00:30]} 26. Ra6 {[%clk 0:01:39]}  Bc7 {[%clk 0:00:26]} 27. Rac6 {[%clk 0:01:37]}  Bb6 {[%clk 0:00:20]} 28. g4 {[%clk 0:01:35]}  Rac8 {[%clk 0:00:17]} 29. Kg2 {[%clk 0:01:33]}  Kf7 {[%clk 0:00:16]} 30. Rf6+ {[%clk 0:01:31]}  Kg7 {[%clk 0:00:16]} 31. f5 {[%clk 0:01:24]}  Rxc6 {[%clk 0:00:15]} 32. Rxc6 {[%clk 0:01:24]}  Rf8 {[%clk 0:00:13]} 33. Bf4 {[%clk 0:01:21]}  Rf7 {[%clk 0:00:07]} 34. f6+ {[%clk 0:01:20]}  Kg8 {[%clk 0:00:04]} 35. g5 {[%clk 0:01:18]}  Rf8 {[%clk 0:00:01]} 36. Re6 {[%clk 0:01:07]}  Kf7 {[%clk 0:00:02]} 37. Re7+ {[%clk 0:01:07]}  Kg8 {[%clk 0:00:03]} 38. Rg7+ {[%clk 0:01:07]}  Kh8 {[%clk 0:00:03]} 39. Be5 {[%clk 0:01:06]} 1-0


[Site "https://www.chess.com"]

[Event "Titled Tuesday Blitz June 8 2021"]
[White "Kobo, Ori"]
[Black "Shcherbinin, Kirill"]
[WhiteFideId "2812320"]
[BlackFideId "4180453"]
[WhiteElo "2431"]
[BlackElo "2204"]
[Result "1-0"]
[Round "05"]
[TimeControl "180+1"]
[Date "2021.06.08"]
[WhiteClock "0:00:24"]
[BlackClock "0:00:12"]

1. e4 {[%clk 0:03:00]}  c5 {[%clk 0:02:56]} 2. Nf3 {[%clk 0:03:00]}  e6 {[%clk 0:02:56]} 3. g3 {[%clk 0:02:59]}  Nc6 {[%clk 0:02:55]} 4. Bg2 {[%clk 0:02:59]}  a6 {[%clk 0:02:56]} 5. O-O {[%clk 0:02:48]}  Nf6 {[%clk 0:02:52]} 6. Qe2 {[%clk 0:02:43]}  Qc7 {[%clk 0:02:51]} 7. e5 {[%clk 0:02:34]}  Nd5 {[%clk 0:02:37]} 8. c4 {[%clk 0:02:31]}  Nde7 {[%clk 0:02:29]} 9. Nc3 {[%clk 0:02:32]}  Ng6 {[%clk 0:02:29]} 10. Re1 {[%clk 0:02:32]}  Nd4 {[%clk 0:02:09]} 11. Nxd4 {[%clk 0:02:25]}  cxd4 {[%clk 0:02:10]} 12. Nb1 {[%clk 0:02:23]}  Bc5 {[%clk 0:02:08]} 13. d3 {[%clk 0:02:22]}  Rb8 {[%clk 0:02:03]} 14. h4 {[%clk 0:02:13]}  Ne7 {[%clk 0:01:57]} 15. Nd2 {[%clk 0:02:08]}  b6 {[%clk 0:01:51]} 16. a3 {[%clk 0:02:01]}  a5 {[%clk 0:01:51]} 17. Rb1 {[%clk 0:01:57]}  Nc6 {[%clk 0:01:39]} 18. Ne4 {[%clk 0:01:45]}  Bb7 {[%clk 0:01:26]} 19. Bf4 {[%clk 0:01:39]}  h6 {[%clk 0:01:17]} 20. Qg4 {[%clk 0:01:35]}  Kf8 {[%clk 0:01:13]} 21. h5 {[%clk 0:01:28]}  a4 {[%clk 0:01:02]} 22. Qe2 {[%clk 0:01:11]}  Ne7 {[%clk 0:00:43]} 23. g4 {[%clk 0:01:08]}  Bc6 {[%clk 0:00:32]} 24. Bg3 {[%clk 0:00:54]}  Qb7 {[%clk 0:00:26]} 25. b4 {[%clk 0:00:52]}  axb3 {[%clk 0:00:26]} 26. Rxb3 {[%clk 0:00:52]}  Qc7 {[%clk 0:00:21]} 27. Reb1 {[%clk 0:00:45]}  Ra8 {[%clk 0:00:20]} 28. Qb2 {[%clk 0:00:39]}  Nc8 {[%clk 0:00:16]} 29. f4 {[%clk 0:00:30]}  Ba4 {[%clk 0:00:15]} 30. Nxc5 {[%clk 0:00:27]}  bxc5 {[%clk 0:00:14]} 31. Bxa8 {[%clk 0:00:26]}  Bxb3 {[%clk 0:00:14]} 32. Qxb3 {[%clk 0:00:26]}  Ke7 {[%clk 0:00:15]} 33. f5 {[%clk 0:00:24]}  f6 {[%clk 0:00:12]} 34. exf6+ {[%clk 0:00:24]} 1-0


[Site "https://www.chess.com"]

[Event "Titled Tuesday Blitz June 8 2021"]
[White "Kozak, Antoni"]
[Black "Shkapenko, Pavel"]
[WhiteFideId "21832030"]
[BlackFideId "4151933"]
[WhiteElo "2289"]
[BlackElo "2386"]
[Result "0-1"]
[Round "05"]
[TimeControl "180+1"]
[Date "2021.06.08"]
[WhiteClock "0:00:04"]
[BlackClock "0:01:56"]

1. d4 {[%clk 0:03:00]}  Nf6 {[%clk 0:02:59]} 2. c4 {[%clk 0:03:00]}  e6 {[%clk 0:02:59]} 3. Nf3 {[%clk 0:03:00]}  Bb4+ {[%clk 0:02:58]} 4. Bd2 {[%clk 0:02:59]}  Qe7 {[%clk 0:02:58]} 5. g3 {[%clk 0:02:59]}  Nc6 {[%clk 0:02:58]} 6. Bg2 {[%clk 0:02:59]}  Bxd2+ {[%clk 0:02:58]} 7. Qxd2 {[%clk 0:02:58]}  Ne4 {[%clk 0:02:58]} 8. Qc2 {[%clk 0:02:58]}  Qb4+ {[%clk 0:02:57]} 9. Kf1 {[%clk 0:02:58]}  f5 {[%clk 0:02:56]} 10. e3 {[%clk 0:02:55]}  O-O {[%clk 0:02:50]} 11. h4 {[%clk 0:02:51]}  Qe7 {[%clk 0:02:50]} 12. Nc3 {[%clk 0:02:40]}  Nxc3 {[%clk 0:02:49]} 13. Qxc3 {[%clk 0:02:40]}  d6 {[%clk 0:02:49]} 14. b4 {[%clk 0:02:17]}  Nd8 {[%clk 0:02:48]} 15. Rd1 {[%clk 0:01:17]}  Nf7 {[%clk 0:02:47]} 16. c5 {[%clk 0:01:12]}  e5 {[%clk 0:02:46]} 17. dxe5 {[%clk 0:01:09]}  dxe5 {[%clk 0:02:46]} 18. Ng5 {[%clk 0:01:07]}  e4 {[%clk 0:02:42]} 19. Nxf7 {[%clk 0:01:02]}  Qxf7 {[%clk 0:02:41]} 20. a3 {[%clk 0:01:00]}  Be6 {[%clk 0:02:41]} 21. Kg1 {[%clk 0:01:00]}  Bb3 {[%clk 0:02:38]} 22. Rd4 {[%clk 0:00:55]}  Rad8 {[%clk 0:02:37]} 23. Kh2 {[%clk 0:00:55]}  Rxd4 {[%clk 0:02:37]} 24. Qxd4 {[%clk 0:00:55]}  Qe7 {[%clk 0:02:21]} 25. Qc3 {[%clk 0:00:48]}  Be6 {[%clk 0:02:21]} 26. Rd1 {[%clk 0:00:48]}  Rd8 {[%clk 0:02:20]} 27. Rd4 {[%clk 0:00:45]}  Rd7 {[%clk 0:02:18]} 28. Qd2 {[%clk 0:00:44]}  Qd8 {[%clk 0:02:15]} 29. Rxd7 {[%clk 0:00:43]}  Qxd7 {[%clk 0:02:16]} 30. Qxd7 {[%clk 0:00:43]}  Bxd7 {[%clk 0:02:16]} 31. Kg1 {[%clk 0:00:43]}  Kf7 {[%clk 0:02:16]} 32. Kf1 {[%clk 0:00:43]}  Ke6 {[%clk 0:02:17]} 33. Ke1 {[%clk 0:00:44]}  Kd5 {[%clk 0:02:17]} 34. Bf1 {[%clk 0:00:44]}  b6 {[%clk 0:02:15]} 35. cxb6 {[%clk 0:00:43]}  cxb6 {[%clk 0:02:09]} 36. Kd2 {[%clk 0:00:43]}  h6 {[%clk 0:02:07]} 37. Kc3 {[%clk 0:00:43]}  g5 {[%clk 0:02:07]} 38. hxg5 {[%clk 0:00:40]}  hxg5 {[%clk 0:02:08]} 39. Bc4+ {[%clk 0:00:40]}  Ke5 {[%clk 0:02:08]} 40. Bg8 {[%clk 0:00:39]}  f4 {[%clk 0:02:08]} 41. gxf4+ {[%clk 0:00:39]}  gxf4 {[%clk 0:02:08]} 42. exf4+ {[%clk 0:00:37]}  Kxf4 {[%clk 0:02:08]} 43. Kd4 {[%clk 0:00:36]}  Bc6 {[%clk 0:02:07]} 44. Bd5 {[%clk 0:00:27]}  Bxd5 {[%clk 0:02:06]} 45. Kxd5 {[%clk 0:00:27]}  Kf3 {[%clk 0:02:07]} 46. b5 {[%clk 0:00:26]}  Kf4 {[%clk 0:02:03]} 47. Ke6 {[%clk 0:00:16]}  e3 {[%clk 0:01:55]} 48. fxe3+ {[%clk 0:00:15]}  Kxe3 {[%clk 0:01:56]} 49. Kd5 {[%clk 0:00:16]}  Kd3 {[%clk 0:01:56]} 50. a4 {[%clk 0:00:03]}  Kc3 {[%clk 0:01:56]} 51. a5 {[%clk 0:00:03]}  bxa5 {[%clk 0:01:55]} 52. Kc6 {[%clk 0:00:03]}  a4 {[%clk 0:01:55]} 53. Kb7 {[%clk 0:00:03]}  a3 {[%clk 0:01:56]} 54. Kxa7 {[%clk 0:00:04]}  a2 {[%clk 0:01:56]} 55. b6 {[%clk 0:00:04]}  a1=Q+ {[%clk 0:01:56]} 0-1


[Site "https://www.chess.com"]

[Event "Titled Tuesday Blitz June 8 2021"]
[White "Kretov, Evgenij"]
[Black "Levine, Joseph"]
[WhiteFideId "4167821"]
[BlackFideId "30940346"]
[WhiteElo "2400"]
[BlackElo "1785"]
[Result "1-0"]
[Round "05"]
[TimeControl "180+1"]
[Date "2021.06.08"]
[WhiteClock "0:00:52"]
[BlackClock "0:00:20"]

1. d4 {[%clk 0:03:00]}  d5 {[%clk 0:02:59]} 2. c4 {[%clk 0:03:01]}  e6 {[%clk 0:02:58]} 3. Nc3 {[%clk 0:03:01]}  Nf6 {[%clk 0:02:57]} 4. cxd5 {[%clk 0:03:01]}  exd5 {[%clk 0:02:57]} 5. Bg5 {[%clk 0:03:01]}  c6 {[%clk 0:02:57]} 6. e3 {[%clk 0:03:01]}  Nbd7 {[%clk 0:02:57]} 7. Bd3 {[%clk 0:03:01]}  Bd6 {[%clk 0:02:57]} 8. Qc2 {[%clk 0:03:01]}  h6 {[%clk 0:02:57]} 9. Bh4 {[%clk 0:03:01]}  O-O {[%clk 0:02:57]} 10. Nf3 {[%clk 0:03:00]}  Re8 {[%clk 0:02:56]} 11. O-O {[%clk 0:03:00]}  Nf8 {[%clk 0:02:56]} 12. Rab1 {[%clk 0:02:59]}  Bg4 {[%clk 0:02:56]} 13. b4 {[%clk 0:02:58]}  a6 {[%clk 0:02:48]} 14. a4 {[%clk 0:02:57]}  Bxf3 {[%clk 0:02:47]} 15. gxf3 {[%clk 0:02:56]}  Ne6 {[%clk 0:02:48]} 16. Bg3 {[%clk 0:02:52]}  Ng5 {[%clk 0:02:45]} 17. Kg2 {[%clk 0:02:52]}  g6 {[%clk 0:02:41]} 18. h4 {[%clk 0:02:27]}  Ngh7 {[%clk 0:02:37]} 19. Ne2 {[%clk 0:02:23]}  Nh5 {[%clk 0:02:33]} 20. Bxg6 {[%clk 0:02:18]}  fxg6 {[%clk 0:02:31]} 21. Qxg6+ {[%clk 0:02:18]}  Ng7 {[%clk 0:02:31]} 22. Qxd6 {[%clk 0:02:16]}  Qxd6 {[%clk 0:02:24]} 23. Bxd6 {[%clk 0:02:16]}  Nf5 {[%clk 0:02:25]} 24. Bg3 {[%clk 0:02:16]}  Nf6 {[%clk 0:02:21]} 25. Nf4 {[%clk 0:02:14]}  Kf7 {[%clk 0:02:19]} 26. Rfe1 {[%clk 0:02:12]}  Re7 {[%clk 0:02:10]} 27. Nd3 {[%clk 0:02:07]}  Nd7 {[%clk 0:02:02]} 28. h5 {[%clk 0:02:02]}  Nb6 {[%clk 0:02:01]} 29. Ne5+ {[%clk 0:01:57]}  Kf6 {[%clk 0:01:59]} 30. a5 {[%clk 0:01:56]}  Nc8 {[%clk 0:01:52]} 31. Bf4 {[%clk 0:01:53]}  Ncd6 {[%clk 0:01:46]} 32. Kh3 {[%clk 0:01:51]}  Rg8 {[%clk 0:01:44]} 33. Rg1 {[%clk 0:01:51]}  Reg7 {[%clk 0:01:44]} 34. Rxg7 {[%clk 0:01:49]}  Rxg7 {[%clk 0:01:45]} 35. Ng4+ {[%clk 0:01:49]}  Ke6 {[%clk 0:01:33]} 36. Nxh6 {[%clk 0:01:36]}  Nxh6 {[%clk 0:01:31]} 37. Bxh6 {[%clk 0:01:36]}  Rh7 {[%clk 0:01:32]} 38. Bf4 {[%clk 0:01:36]}  Rxh5+ {[%clk 0:01:32]} 39. Kg4 {[%clk 0:01:35]}  Rh7 {[%clk 0:01:28]} 40. Bxd6 {[%clk 0:01:35]}  Kxd6 {[%clk 0:01:29]} 41. f4 {[%clk 0:01:32]}  Ke6 {[%clk 0:01:26]} 42. Kf3 {[%clk 0:01:23]}  Kf5 {[%clk 0:01:22]} 43. Rg1 {[%clk 0:01:23]}  Rh3+ {[%clk 0:01:20]} 44. Rg3 {[%clk 0:01:20]}  Rh7 {[%clk 0:01:20]} 45. Rg5+ {[%clk 0:01:19]}  Kf6 {[%clk 0:01:20]} 46. Rg1 {[%clk 0:01:15]}  Kf5 {[%clk 0:01:18]} 47. Ke2 {[%clk 0:01:15]}  Kf6 {[%clk 0:01:05]} 48. Kd3 {[%clk 0:01:14]}  Kf5 {[%clk 0:01:05]} 49. Rg8 {[%clk 0:01:09]}  Kf6 {[%clk 0:01:02]} 50. Rg3 {[%clk 0:01:08]}  Kf5 {[%clk 0:01:02]} 51. f3 {[%clk 0:01:09]}  Re7 {[%clk 0:00:59]} 52. Rg5+ {[%clk 0:01:06]}  Kf6 {[%clk 0:00:59]} 53. e4 {[%clk 0:01:05]}  dxe4+ {[%clk 0:00:57]} 54. fxe4 {[%clk 0:01:05]}  Rh7 {[%clk 0:00:58]} 55. Kc4 {[%clk 0:01:02]}  Rh4 {[%clk 0:00:55]} 56. Rf5+ {[%clk 0:01:01]}  Ke6 {[%clk 0:00:55]} 57. Kc5 {[%clk 0:01:01]}  Rh1 {[%clk 0:00:52]} 58. Kb6 {[%clk 0:01:01]}  Rb1 {[%clk 0:00:51]} 59. Kxb7 {[%clk 0:01:00]}  Rxb4+ {[%clk 0:00:51]} 60. Kxc6 {[%clk 0:00:57]}  Rxd4 {[%clk 0:00:51]} 61. Re5+ {[%clk 0:00:57]}  Kf6 {[%clk 0:00:50]} 62. Kb6 {[%clk 0:00:58]}  Rd6+ {[%clk 0:00:42]} 63. Kb7 {[%clk 0:00:57]}  Kf7 {[%clk 0:00:40]} 64. Rc5 {[%clk 0:00:57]}  Re6 {[%clk 0:00:32]} 65. Rc7+ {[%clk 0:00:57]}  Ke8 {[%clk 0:00:32]} 66. e5 {[%clk 0:00:56]}  Kd8 {[%clk 0:00:32]} 67. Rc6 {[%clk 0:00:54]}  Re7+ {[%clk 0:00:20]} 68. Kxa6 {[%clk 0:00:54]}  Kd7 {[%clk 0:00:21]} 69. Kb6 {[%clk 0:00:53]}  Kd8 {[%clk 0:00:20]} 70. a6 {[%clk 0:00:52]} 1-0


[Site "https://www.chess.com"]

[Event "Titled Tuesday Blitz June 8 2021"]
[White "Lianes Garcia, Marcos"]
[Black "Korobov, Anton"]
[WhiteFideId "32060777"]
[BlackFideId "14105730"]
[WhiteElo "2236"]
[BlackElo "2668"]
[Result "0-1"]
[Round "05"]
[TimeControl "180+1"]
[Date "2021.06.08"]
[WhiteClock "0:00:11"]
[BlackClock "0:00:28"]

1. e4 {[%clk 0:03:00]}  c5 {[%clk 0:02:59]} 2. g3 {[%clk 0:03:01]}  Nc6 {[%clk 0:02:58]} 3. Bg2 {[%clk 0:03:01]}  g6 {[%clk 0:02:59]} 4. Ne2 {[%clk 0:03:02]}  Bg7 {[%clk 0:02:58]} 5. c3 {[%clk 0:03:02]}  e5 {[%clk 0:02:58]} 6. O-O {[%clk 0:03:02]}  Nge7 {[%clk 0:02:59]} 7. d3 {[%clk 0:03:02]}  O-O {[%clk 0:02:59]} 8. Be3 {[%clk 0:03:03]}  d6 {[%clk 0:02:59]} 9. d4 {[%clk 0:03:03]}  exd4 {[%clk 0:02:55]} 10. cxd4 {[%clk 0:03:04]}  Bg4 {[%clk 0:02:55]} 11. f3 {[%clk 0:03:04]}  Bd7 {[%clk 0:02:54]} 12. Nbc3 {[%clk 0:03:05]}  b6 {[%clk 0:02:48]} 13. Qd2 {[%clk 0:03:04]}  Rc8 {[%clk 0:02:43]} 14. Rfd1 {[%clk 0:03:04]}  Na5 {[%clk 0:02:15]} 15. b3 {[%clk 0:03:02]}  c4 {[%clk 0:02:13]} 16. b4 {[%clk 0:02:56]}  Nac6 {[%clk 0:02:13]} 17. a3 {[%clk 0:02:54]}  a5 {[%clk 0:02:03]} 18. b5 {[%clk 0:02:52]}  Na7 {[%clk 0:02:03]} 19. a4 {[%clk 0:02:52]}  d5 {[%clk 0:02:04]} 20. Nxd5 {[%clk 0:02:40]}  Nxd5 {[%clk 0:02:03]} 21. exd5 {[%clk 0:02:41]}  Bf5 {[%clk 0:02:00]} 22. Nc3 {[%clk 0:02:41]}  Rc7 {[%clk 0:01:58]} 23. Bg5 {[%clk 0:02:32]}  Bf6 {[%clk 0:01:53]} 24. Bxf6 {[%clk 0:02:31]}  Qxf6 {[%clk 0:01:54]} 25. Qf4 {[%clk 0:02:31]}  Qd8 {[%clk 0:01:52]} 26. g4 {[%clk 0:02:28]}  Bd3 {[%clk 0:01:52]} 27. Bf1 {[%clk 0:02:16]}  Bxf1 {[%clk 0:01:51]} 28. Kxf1 {[%clk 0:02:15]}  Nc8 {[%clk 0:01:52]} 29. Re1 {[%clk 0:02:14]}  Nd6 {[%clk 0:01:47]} 30. Re3 {[%clk 0:02:12]}  g5 {[%clk 0:01:36]} 31. Qg3 {[%clk 0:02:08]}  f5 {[%clk 0:01:36]} 32. Re6 {[%clk 0:02:05]}  Rd7 {[%clk 0:01:34]} 33. Rae1 {[%clk 0:01:57]}  fxg4 {[%clk 0:01:27]} 34. Qxg4 {[%clk 0:01:58]}  Rf4 {[%clk 0:01:27]} 35. Qg2 {[%clk 0:01:49]}  Rdf7 {[%clk 0:01:22]} 36. Kg1 {[%clk 0:01:46]}  Rxf3 {[%clk 0:01:20]} 37. Ne4 {[%clk 0:01:43]}  Nxe4 {[%clk 0:01:20]} 38. R6xe4 {[%clk 0:01:43]}  Qxd5 {[%clk 0:01:17]} 39. Qg4 {[%clk 0:01:29]}  R3f4 {[%clk 0:01:09]} 40. Qc8+ {[%clk 0:01:14]}  Rf8 {[%clk 0:01:05]} 41. Re8 {[%clk 0:01:10]}  Qxd4+ {[%clk 0:01:03]} 42. Kh1 {[%clk 0:01:11]}  c3 {[%clk 0:00:56]} 43. Qe6+ {[%clk 0:01:04]}  Kh8 {[%clk 0:00:55]} 44. Rc1 {[%clk 0:00:54]}  c2 {[%clk 0:00:52]} 45. Qe2 {[%clk 0:00:42]}  Rxe8 {[%clk 0:00:44]} 46. Qxe8+ {[%clk 0:00:43]}  Kg7 {[%clk 0:00:43]} 47. Qe7+ {[%clk 0:00:41]}  Rf7 {[%clk 0:00:37]} 48. Qxg5+ {[%clk 0:00:41]}  Kh8 {[%clk 0:00:34]} 49. Rxc2 {[%clk 0:00:19]}  Qd1+ {[%clk 0:00:34]} 50. Qg1 {[%clk 0:00:20]}  Qxc2 {[%clk 0:00:30]} 51. Qd4+ {[%clk 0:00:19]}  Kg8 {[%clk 0:00:30]} 52. Qd8+ {[%clk 0:00:18]}  Rf8 {[%clk 0:00:31]} 53. Qd5+ {[%clk 0:00:18]}  Kg7 {[%clk 0:00:31]} 54. Qe5+ {[%clk 0:00:18]}  Rf6 {[%clk 0:00:31]} 55. Qe7+ {[%clk 0:00:18]}  Rf7 {[%clk 0:00:31]} 56. Qe5+ {[%clk 0:00:18]}  Kg6 {[%clk 0:00:32]} 57. Qe6+ {[%clk 0:00:18]}  Rf6 {[%clk 0:00:32]} 58. Qe8+ {[%clk 0:00:15]}  Kf5 {[%clk 0:00:29]} 59. Qd7+ {[%clk 0:00:13]}  Re6 {[%clk 0:00:28]} 60. Qxh7+ {[%clk 0:00:13]}  Rg6 {[%clk 0:00:28]} 61. Qf7+ {[%clk 0:00:12]}  Ke5 {[%clk 0:00:28]} 62. Qe7+ {[%clk 0:00:12]}  Kd4 {[%clk 0:00:28]} 63. Qd7+ {[%clk 0:00:11]}  Kc3 {[%clk 0:00:28]} 0-1


[Site "https://www.chess.com"]

[Event "Titled Tuesday Blitz June 8 2021"]
[White "Madaminov, Mukhiddin"]
[Black "Ozen, Bahadir"]
[WhiteFideId "14210703"]
[BlackFideId "6337058"]
[WhiteElo "1747"]
[BlackElo "2503"]
[Result "1-0"]
[Round "05"]
[TimeControl "180+1"]
[Date "2021.06.08"]
[WhiteClock "0:00:03"]
[BlackClock "0:00:05"]

1. e4 {[%clk 0:03:00]}  c6 {[%clk 0:02:59]} 2. Nf3 {[%clk 0:02:59]}  d5 {[%clk 0:03:00]} 3. Nc3 {[%clk 0:03:00]}  dxe4 {[%clk 0:03:00]} 4. Nxe4 {[%clk 0:03:01]}  Nd7 {[%clk 0:03:01]} 5. d4 {[%clk 0:02:58]}  Ngf6 {[%clk 0:03:00]} 6. Ng3 {[%clk 0:02:57]}  e6 {[%clk 0:02:38]} 7. Bd3 {[%clk 0:02:51]}  Bd6 {[%clk 0:02:38]} 8. O-O {[%clk 0:02:51]}  O-O {[%clk 0:02:37]} 9. b3 {[%clk 0:02:50]}  b6 {[%clk 0:02:37]} 10. Bb2 {[%clk 0:02:51]}  Bb7 {[%clk 0:02:37]} 11. Re1 {[%clk 0:02:45]}  c5 {[%clk 0:02:36]} 12. Ne4 {[%clk 0:02:43]}  Nxe4 {[%clk 0:02:35]} 13. Bxe4 {[%clk 0:02:44]}  Bxe4 {[%clk 0:02:36]} 14. Rxe4 {[%clk 0:02:45]}  Nf6 {[%clk 0:02:32]} 15. Re2 {[%clk 0:02:36]}  Rc8 {[%clk 0:02:29]} 16. c4 {[%clk 0:02:27]}  cxd4 {[%clk 0:02:29]} 17. Bxd4 {[%clk 0:02:27]}  Bc5 {[%clk 0:02:20]} 18. Rd2 {[%clk 0:02:06]}  Qe7 {[%clk 0:02:17]} 19. Bxc5 {[%clk 0:02:00]}  Rxc5 {[%clk 0:02:11]} 20. Qe2 {[%clk 0:01:59]}  Qc7 {[%clk 0:01:42]} 21. Rad1 {[%clk 0:01:57]}  h6 {[%clk 0:01:42]} 22. h3 {[%clk 0:01:54]}  Rc8 {[%clk 0:01:41]} 23. Rd6 {[%clk 0:01:49]}  Rc6 {[%clk 0:01:33]} 24. Rxc6 {[%clk 0:01:42]}  Qxc6 {[%clk 0:01:34]} 25. Ne5 {[%clk 0:01:43]}  Qc7 {[%clk 0:01:32]} 26. b4 {[%clk 0:01:38]}  Rd8 {[%clk 0:01:22]} 27. Rxd8+ {[%clk 0:01:32]}  Qxd8 {[%clk 0:01:23]} 28. g3 {[%clk 0:01:15]}  Qd6 {[%clk 0:01:18]} 29. a3 {[%clk 0:01:13]}  Qd4 {[%clk 0:01:09]} 30. Qe3 {[%clk 0:01:05]}  Qd1+ {[%clk 0:00:47]} 31. Kg2 {[%clk 0:01:04]}  Nd7 {[%clk 0:00:48]} 32. Qd3 {[%clk 0:00:46]}  Qxd3 {[%clk 0:00:47]} 33. Nxd3 {[%clk 0:00:47]}  Kf8 {[%clk 0:00:48]} 34. f4 {[%clk 0:00:47]}  Ke7 {[%clk 0:00:48]} 35. Kf3 {[%clk 0:00:48]}  Kd6 {[%clk 0:00:47]} 36. Ke4 {[%clk 0:00:48]}  a5 {[%clk 0:00:28]} 37. Kd4 {[%clk 0:00:46]}  axb4 {[%clk 0:00:28]} 38. axb4 {[%clk 0:00:47]}  f6 {[%clk 0:00:22]} 39. g4 {[%clk 0:00:47]}  g6 {[%clk 0:00:20]} 40. h4 {[%clk 0:00:31]}  e5+ {[%clk 0:00:20]} 41. fxe5+ {[%clk 0:00:30]}  fxe5+ {[%clk 0:00:20]} 42. Ke3 {[%clk 0:00:31]}  Nf6 {[%clk 0:00:19]} 43. Nf2 {[%clk 0:00:30]}  Ke6 {[%clk 0:00:16]} 44. Kf3 {[%clk 0:00:29]}  h5 {[%clk 0:00:14]} 45. g5 {[%clk 0:00:28]}  Nd7 {[%clk 0:00:11]} 46. Ke4 {[%clk 0:00:27]}  Nb8 {[%clk 0:00:08]} 47. Nd3 {[%clk 0:00:26]}  Nc6 {[%clk 0:00:08]} 48. b5 {[%clk 0:00:24]}  Na5 {[%clk 0:00:08]} 49. Nxe5 {[%clk 0:00:24]}  Kd6 {[%clk 0:00:03]} 50. Nxg6 {[%clk 0:00:23]}  Nxc4 {[%clk 0:00:03]} 51. Nf4 {[%clk 0:00:23]}  Na3 {[%clk 0:00:04]} 52. Nxh5 {[%clk 0:00:22]}  Nxb5 {[%clk 0:00:03]} 53. Kf5 {[%clk 0:00:20]}  Nd4+ {[%clk 0:00:03]} 54. Kf6 {[%clk 0:00:20]}  b5 {[%clk 0:00:04]} 55. g6 {[%clk 0:00:20]}  Ne6 {[%clk 0:00:03]} 56. Ng3 {[%clk 0:00:16]}  b4 {[%clk 0:00:03]} 57. Nf5+ {[%clk 0:00:16]}  Kd7 {[%clk 0:00:03]} 58. Nd4 {[%clk 0:00:11]}  Nxd4 {[%clk 0:00:02]} 59. g7 {[%clk 0:00:12]}  b3 {[%clk 0:00:02]} 60. g8=Q {[%clk 0:00:13]}  Kd6 {[%clk 0:00:03]} 61. Qd8+ {[%clk 0:00:12]}  Kc5 {[%clk 0:00:03]} 62. Qc7+ {[%clk 0:00:13]}  Nc6 {[%clk 0:00:03]} 63. Qb7 {[%clk 0:00:12]}  Nb4 {[%clk 0:00:02]} 64. Qf3 {[%clk 0:00:09]}  Kc4 {[%clk 0:00:02]} 65. Qe4+ {[%clk 0:00:09]}  Kc3 {[%clk 0:00:03]} 66. Qe1+ {[%clk 0:00:09]}  Kc4 {[%clk 0:00:03]} 67. Qc1+ {[%clk 0:00:08]}  Kb5 {[%clk 0:00:02]} 68. Qa3 {[%clk 0:00:04]}  Kc4 {[%clk 0:00:02]} 69. h5 {[%clk 0:00:03]}  Nd5+ {[%clk 0:00:02]} 70. Ke5 {[%clk 0:00:03]}  Ne3 {[%clk 0:00:02]} 71. h6 {[%clk 0:00:03]}  Nc2 {[%clk 0:00:03]} 72. Qb2 {[%clk 0:00:03]}  Nb4 {[%clk 0:00:04]} 73. Qd4+ {[%clk 0:00:02]}  Kb5 {[%clk 0:00:04]} 74. Qc3 {[%clk 0:00:02]}  Ka4 {[%clk 0:00:05]} 75. Qa1+ {[%clk 0:00:02]}  Kb5 {[%clk 0:00:05]} 76. h7 {[%clk 0:00:02]}  Kc4 {[%clk 0:00:05]} 77. Qd4+ {[%clk 0:00:02]}  Kb5 {[%clk 0:00:05]} 78. Qc3 {[%clk 0:00:03]}  Na2 {[%clk 0:00:05]} 79. Qxb3+ {[%clk 0:00:03]} 1-0


[Site "https://www.chess.com"]